[Event "Late-Titled-Tuesday-Blitz-December-26-2023"]
[Site "Chess.com"]
[Date "2023.12.26"]
[Round "6"]
[White "CarlosjPineror"]
[Black "Schwindle"]
[Result "0-1"]
[WhiteElo "2484"]
[BlackElo "2392"]
[TimeControl "180+1"]
[EndTime "15:04:10 PST"]
[Termination "Schwindle won by resignation"]

1. e4 {[%clk 0:02:59.1]} 1... e6 {[%clk 0:03:00.1]} 2. d4 {[%clk 0:02:58.5]}
2... d5 {[%clk 0:03:00.1]} 3. e5 {[%clk 0:02:58.8]} 3... c5 {[%clk 0:02:56.8]}
4. c3 {[%clk 0:02:58.4]} 4... Nc6 {[%clk 0:02:56.7]} 5. Nf3 {[%clk 0:02:58.3]}
5... Bd7 {[%clk 0:02:56.4]} 6. a3 {[%clk 0:02:57.9]} 6... f6 {[%clk 0:02:56]} 7.
Bd3 {[%clk 0:02:55.9]} 7... Qc7 {[%clk 0:02:52.3]} 8. exf6 {[%clk 0:02:51.2]}
8... Nxf6 {[%clk 0:02:52]} 9. O-O {[%clk 0:02:51.3]} 9... cxd4 {[%clk
0:02:51.2]} 10. cxd4 {[%clk 0:02:50.8]} 10... Bd6 {[%clk 0:02:51.2]} 11. Nc3
{[%clk 0:02:49.5]} 11... a6 {[%clk 0:02:51.2]} 12. Re1 {[%clk 0:02:47.2]} 12...
O-O {[%clk 0:02:46.9]} 13. Bg5 {[%clk 0:02:46.5]} 13... Ng4 {[%clk 0:02:45.9]}
14. h3 {[%clk 0:02:39.2]} 14... Bh2+ {[%clk 0:02:44.6]} 15. Kf1 {[%clk 0:02:38]}
15... Nxf2 {[%clk 0:02:44.9]} 16. Kxf2 {[%clk 0:02:29.3]} 16... Qg3+ {[%clk
0:02:43.9]} 17. Ke2 {[%clk 0:02:27.6]} 17... Nxd4+ {[%clk 0:02:37.5]} 18. Kd2
{[%clk 0:02:17.7]} 18... Nxf3+ {[%clk 0:02:29.2]} 19. gxf3 {[%clk 0:02:14.8]}
19... Qxg5+ {[%clk 0:02:25]} 20. Kc2 {[%clk 0:02:13.9]} 20... Rac8 {[%clk
0:02:21.4]} 21. h4 {[%clk 0:01:40.3]} 21... Qf6 {[%clk 0:02:01.5]} 22. Qe2
{[%clk 0:01:31.4]} 22... Bd6 {[%clk 0:01:41.5]} 23. Rad1 {[%clk 0:01:28.2]}
23... Ba4+ {[%clk 0:01:27.9]} 24. Kb1 {[%clk 0:01:27.3]} 24... Bxd1 {[%clk
0:01:24.2]} 25. Rxd1 {[%clk 0:01:25.4]} 25... Bxa3 {[%clk 0:01:16.9]} 0-1

[Event "Late-Titled-Tuesday-Blitz-December-26-2023"]
[Site "Chess.com"]
[Date "2023.12.26"]
[Round "6"]
[White "elchacal664"]
[Black "kingofthenil"]
[Result "1-0"]
[WhiteElo "2313"]
[BlackElo "2653"]
[TimeControl "180+1"]
[EndTime "15:04:15 PST"]
[Termination "elchacal664 won on time"]

1. e4 {[%clk 0:03:00.9]} 1... Nc6 {[%clk 0:00:30.5]} 2. d4 {[%clk 0:02:58.1]}
2... d5 {[%clk 0:00:31.4]} 3. exd5 {[%clk 0:02:57.6]} 3... Qxd5 {[%clk
0:00:32.3]} 4. Nf3 {[%clk 0:02:56.8]} 4... e5 {[%clk 0:00:30]} 5. dxe5 {[%clk
0:02:51.7]} 5... Qxd1+ {[%clk 0:00:28.6]} 6. Kxd1 {[%clk 0:02:52.3]} 6... Bg4
{[%clk 0:00:28.6]} 7. Be2 {[%clk 0:02:52.1]} 7... O-O-O+ {[%clk 0:00:27.8]} 8.
Ke1 {[%clk 0:02:51.5]} 8... f6 {[%clk 0:00:26.2]} 9. exf6 {[%clk 0:02:50.5]}
9... Nxf6 {[%clk 0:00:27.1]} 10. c3 {[%clk 0:02:46.4]} 10... Bc5 {[%clk
0:00:22.3]} 11. h3 {[%clk 0:02:42.9]} 11... Bh5 {[%clk 0:00:19.7]} 12. Kf1
{[%clk 0:02:38.1]} 12... Rhe8 {[%clk 0:00:19.2]} 13. Nbd2 {[%clk 0:02:36.9]}
13... a5 {[%clk 0:00:09.6]} 14. Nc4 {[%clk 0:02:28.8]} 14... Ne4 {[%clk
0:00:01.6]} 15. Be3 {[%clk 0:02:28]} 15... Bxe3 {[%clk 0:00:01.9]} 16. Nxe3
{[%clk 0:02:28.6]} 16... Ng3+ {[%clk 0:00:01.2]} 17. fxg3 {[%clk 0:02:29.2]}
17... Rxe3 {[%clk 0:00:01.7]} 18. g4 {[%clk 0:02:27.2]} 18... Bg6 {[%clk
0:00:01.5]} 19. Kf2 {[%clk 0:02:24.1]} 19... Re7 {[%clk 0:00:01.6]} 20. Rhe1
{[%clk 0:02:23.9]} 20... Rf8 {[%clk 0:00:01.8]} 21. Kg3 {[%clk 0:02:23.2]} 21...
a4 {[%clk 0:00:02.1]} 22. Bb5 {[%clk 0:02:23]} 1-0

[Event "Late-Titled-Tuesday-Blitz-December-26-2023"]
[Site "Chess.com"]
[Date "2023.12.26"]
[Round "6"]
[White "protectiago"]
[Black "BeardedNM"]
[Result "0-1"]
[WhiteElo "2048"]
[BlackElo "2173"]
[TimeControl "180+1"]
[EndTime "15:04:19 PST"]
[Termination "BeardedNM won by resignation"]

1. d4 {[%clk 0:03:00.2]} 1... e6 {[%clk 0:02:59.4]} 2. c4 {[%clk 0:03:00]} 2...
Nf6 {[%clk 0:02:59.6]} 3. Nf3 {[%clk 0:03:00.2]} 3... d5 {[%clk 0:03:00.1]} 4.
g3 {[%clk 0:03:00.4]} 4... Be7 {[%clk 0:02:59.9]} 5. Bg2 {[%clk 0:03:00.7]} 5...
O-O {[%clk 0:03:00.5]} 6. O-O {[%clk 0:03:00.8]} 6... dxc4 {[%clk 0:03:01.1]} 7.
Ne5 {[%clk 0:02:53.9]} 7... Nc6 {[%clk 0:03:01]} 8. Bxc6 {[%clk 0:02:51.5]} 8...
bxc6 {[%clk 0:03:01.9]} 9. Nxc6 {[%clk 0:02:51.7]} 9... Qe8 {[%clk 0:03:02]} 10.
Nxe7+ {[%clk 0:02:52.3]} 10... Qxe7 {[%clk 0:03:02.9]} 11. Qa4 {[%clk
0:02:52.1]} 11... e5 {[%clk 0:03:03.4]} 12. dxe5 {[%clk 0:02:46.4]} 12... Qxe5
{[%clk 0:03:04.3]} 13. Qxc4 {[%clk 0:02:46.5]} 13... Be6 {[%clk 0:02:47.7]} 14.
Qc2 {[%clk 0:02:11.1]} 14... Bf5 {[%clk 0:02:38.3]} 15. Qd1 {[%clk 0:01:40.6]}
15... Rad8 {[%clk 0:02:31.7]} 16. Qe1 {[%clk 0:01:40]} 16... Bh3 {[%clk
0:02:26.6]} 17. f4 {[%clk 0:01:28.3]} 17... Qc5+ {[%clk 0:02:16.2]} 18. e3
{[%clk 0:00:32.7]} 18... Bxf1 {[%clk 0:02:10.8]} 19. Qxf1 {[%clk 0:00:32.5]}
19... Ng4 {[%clk 0:01:52.8]} 0-1

[Event "Late-Titled-Tuesday-Blitz-December-26-2023"]
[Site "Chess.com"]
[Date "2023.12.26"]
[Round "6"]
[White "ElenGajger"]
[Black "RebecaJimnz"]
[Result "0-1"]
[WhiteElo "2431"]
[BlackElo "2277"]
[TimeControl "180+1"]
[EndTime "15:04:22 PST"]
[Termination "RebecaJimnz won by resignation"]

1. e4 {[%clk 0:03:00.9]} 1... c5 {[%clk 0:02:59]} 2. Nc3 {[%clk 0:03:00]} 2...
Nc6 {[%clk 0:02:59.5]} 3. Bb5 {[%clk 0:02:59.5]} 3... Nd4 {[%clk 0:02:58.3]} 4.
Bc4 {[%clk 0:02:59.7]} 4... e6 {[%clk 0:02:58.1]} 5. Nf3 {[%clk 0:02:59.7]} 5...
Ne7 {[%clk 0:02:53.2]} 6. O-O {[%clk 0:02:58.7]} 6... g6 {[%clk 0:02:50.9]} 7.
Nxd4 {[%clk 0:02:55.7]} 7... cxd4 {[%clk 0:02:51.8]} 8. Nb5 {[%clk 0:02:55.4]}
8... d5 {[%clk 0:02:48.5]} 9. exd5 {[%clk 0:02:53.2]} 9... Nxd5 {[%clk
0:02:48.3]} 10. Nxd4 {[%clk 0:02:52.4]} 10... Bg7 {[%clk 0:02:36.1]} 11. Nf3
{[%clk 0:02:51.6]} 11... O-O {[%clk 0:02:35.1]} 12. d3 {[%clk 0:02:50.7]} 12...
a6 {[%clk 0:02:24.6]} 13. a4 {[%clk 0:02:48.4]} 13... b6 {[%clk 0:02:23.4]} 14.
c3 {[%clk 0:02:47.8]} 14... Bb7 {[%clk 0:02:23]} 15. Bg5 {[%clk 0:02:47.7]}
15... Qd7 {[%clk 0:02:15.9]} 16. Re1 {[%clk 0:02:45.8]} 16... Rac8 {[%clk
0:02:13.1]} 17. Qd2 {[%clk 0:02:43.9]} 17... b5 {[%clk 0:01:44.5]} 18. axb5
{[%clk 0:02:34.9]} 18... axb5 {[%clk 0:01:45.4]} 19. Bb3 {[%clk 0:02:35.4]}
19... Nxc3 {[%clk 0:01:45.5]} 20. bxc3 {[%clk 0:02:31.3]} 20... Bxc3 {[%clk
0:01:46.4]} 21. Qf4 {[%clk 0:02:26.5]} 21... Qxd3 {[%clk 0:01:29.6]} 22. Re3
{[%clk 0:02:13.7]} 22... Qd7 {[%clk 0:00:41.7]} 23. Rxc3 {[%clk 0:02:08.7]}
23... Rxc3 {[%clk 0:00:38]} 24. Bf6 {[%clk 0:02:08.5]} 24... Rxf3 {[%clk
0:00:23.3]} 25. Qh6 {[%clk 0:02:05.9]} 25... Rxf6 {[%clk 0:00:20.6]} 0-1

[Event "Late-Titled-Tuesday-Blitz-December-26-2023"]
[Site "Chess.com"]
[Date "2023.12.26"]
[Round "6"]
[White "Pertinhez76"]
[Black "2KTNGO"]
[Result "0-1"]
[WhiteElo "2078"]
[BlackElo "2502"]
[TimeControl "180+1"]
[EndTime "15:04:49 PST"]
[Termination "2KTNGO won by resignation"]

1. d4 {[%clk 0:02:59]} 1... Nf6 {[%clk 0:02:56.6]} 2. Nf3 {[%clk 0:02:53.9]}
2... c5 {[%clk 0:02:52.9]} 3. e3 {[%clk 0:02:51]} 3... e6 {[%clk 0:02:50.4]} 4.
c3 {[%clk 0:02:50.4]} 4... b6 {[%clk 0:02:49.6]} 5. Be2 {[%clk 0:02:39.2]} 5...
Bb7 {[%clk 0:02:48.4]} 6. Nbd2 {[%clk 0:02:34.9]} 6... d5 {[%clk 0:02:46.9]} 7.
O-O {[%clk 0:02:33.5]} 7... Bd6 {[%clk 0:02:45]} 8. Re1 {[%clk 0:02:26.3]} 8...
Nbd7 {[%clk 0:02:43]} 9. b3 {[%clk 0:02:24.8]} 9... Ne4 {[%clk 0:02:37]} 10. Qc2
{[%clk 0:02:20]} 10... O-O {[%clk 0:02:34.9]} 11. Bb2 {[%clk 0:02:17.8]} 11...
f5 {[%clk 0:02:33.3]} 12. Rac1 {[%clk 0:02:09.4]} 12... Rc8 {[%clk 0:02:29.1]}
13. Qb1 {[%clk 0:02:06.1]} 13... Qf6 {[%clk 0:02:26.8]} 14. Nf1 {[%clk
0:01:50.1]} 14... Qh6 {[%clk 0:02:24.7]} 15. h3 {[%clk 0:01:48.6]} 15... Ndf6
{[%clk 0:02:19.2]} 16. c4 {[%clk 0:01:46.1]} 16... f4 {[%clk 0:02:08.2]} 17. Ne5
{[%clk 0:01:31.3]} 17... fxe3 {[%clk 0:02:05.4]} 18. Nxe3 {[%clk 0:01:27.9]}
18... Nxf2 {[%clk 0:02:00.9]} 19. Kxf2 {[%clk 0:01:10.8]} 19... Ng4+ {[%clk
0:01:58.1]} 20. Kg1 {[%clk 0:01:11.1]} 20... Qxe3+ {[%clk 0:01:56.4]} 21. Kh1
{[%clk 0:01:11.4]} 21... Nf2+ {[%clk 0:01:54.6]} 22. Kh2 {[%clk 0:01:08]} 22...
cxd4 {[%clk 0:01:53.9]} 23. Bf3 {[%clk 0:00:17.1]} 23... Bxe5+ {[%clk
0:01:51.5]} 24. Kg1 {[%clk 0:00:17.2]} 24... Nxh3+ {[%clk 0:01:49.5]} 25. Kh1
{[%clk 0:00:16.8]} 25... Qg1+ {[%clk 0:01:49.3]} 0-1

[Event "Late-Titled-Tuesday-Blitz-December-26-2023"]
[Site "Chess.com"]
[Date "2023.12.26"]
[Round "6"]
[White "grandemestregringo"]
[Black "PapaieDudu"]
[Result "1-0"]
[WhiteElo "2665"]
[BlackElo "2502"]
[TimeControl "180+1"]
[EndTime "15:04:58 PST"]
[Termination "grandemestregringo won by resignation"]

1. f4 {[%clk 0:03:00.9]} 1... Nf6 {[%clk 0:02:56.1]} 2. Nf3 {[%clk 0:03:01.1]}
2... d5 {[%clk 0:02:56.1]} 3. e3 {[%clk 0:03:01.2]} 3... b6 {[%clk 0:02:54.2]}
4. b3 {[%clk 0:03:01.4]} 4... e6 {[%clk 0:02:54.8]} 5. Bb2 {[%clk 0:03:02]} 5...
Bd6 {[%clk 0:02:54.7]} 6. Nc3 {[%clk 0:02:32.5]} 6... O-O {[%clk 0:02:50]} 7. g4
{[%clk 0:02:31.6]} 7... c5 {[%clk 0:02:34.8]} 8. g5 {[%clk 0:02:31.1]} 8... Ne4
{[%clk 0:02:30]} 9. Nxe4 {[%clk 0:02:31.1]} 9... dxe4 {[%clk 0:02:30.5]} 10. Ne5
{[%clk 0:02:32]} 10... Bxe5 {[%clk 0:02:12.8]} 11. Bxe5 {[%clk 0:02:31.6]} 11...
Nc6 {[%clk 0:02:13.2]} 12. Bc3 {[%clk 0:02:27.6]} 12... e5 {[%clk 0:02:12.4]}
13. Bb5 {[%clk 0:02:06.9]} 13... exf4 {[%clk 0:01:56]} 14. Bxc6 {[%clk
0:01:58.9]} 14... Qxg5 {[%clk 0:01:54.8]} 15. Qe2 {[%clk 0:01:50]} 15... Qh4+
{[%clk 0:01:17.8]} 16. Qf2 {[%clk 0:01:50.1]} 16... Qh5 {[%clk 0:00:58.7]} 17.
Bxa8 {[%clk 0:01:46.7]} 17... Ba6 {[%clk 0:00:53.4]} 18. Rg1 {[%clk 0:01:42.6]}
18... g6 {[%clk 0:00:52.7]} 19. Bxe4 {[%clk 0:01:35.5]} 19... Re8 {[%clk
0:00:45.5]} 20. Bf3 {[%clk 0:01:35.3]} 20... Qf5 {[%clk 0:00:36.7]} 21. e4
{[%clk 0:01:31.8]} 21... Qe6 {[%clk 0:00:20.7]} 22. O-O-O {[%clk 0:01:30.2]}
22... c4 {[%clk 0:00:19.8]} 23. b4 {[%clk 0:01:30.6]} 23... Qc6 {[%clk
0:00:18.5]} 24. Qd4 {[%clk 0:01:30.4]} 1-0

[Event "Late-Titled-Tuesday-Blitz-December-26-2023"]
[Site "Chess.com"]
[Date "2023.12.26"]
[Round "6"]
[White "BestestBP"]
[Black "Fore_Man"]
[Result "0-1"]
[WhiteElo "2187"]
[BlackElo "2391"]
[TimeControl "180+1"]
[EndTime "15:04:58 PST"]
[Termination "Fore_Man won by resignation"]

1. c4 {[%clk 0:03:00.9]} 1... e5 {[%clk 0:02:59.6]} 2. Nc3 {[%clk 0:03:00.9]}
2... Bb4 {[%clk 0:03:00.2]} 3. Nd5 {[%clk 0:03:00.2]} 3... Be7 {[%clk
0:03:00.8]} 4. d4 {[%clk 0:02:58.3]} 4... exd4 {[%clk 0:03:00.8]} 5. Qxd4 {[%clk
0:02:58]} 5... Nf6 {[%clk 0:03:01.2]} 6. Nxe7 {[%clk 0:02:57.5]} 6... Qxe7
{[%clk 0:03:01.3]} 7. Bg5 {[%clk 0:02:51.5]} 7... Qb4+ {[%clk 0:02:52.7]} 8. Bd2
{[%clk 0:02:49.3]} 8... Qe7 {[%clk 0:02:49.6]} 9. Qe3 {[%clk 0:02:42.4]} 9...
Nc6 {[%clk 0:02:47.1]} 10. Qxe7+ {[%clk 0:02:41]} 10... Nxe7 {[%clk 0:02:48]}
11. Bc3 {[%clk 0:02:36.7]} 11... d6 {[%clk 0:02:36.3]} 12. Nf3 {[%clk
0:02:26.8]} 12... Rg8 {[%clk 0:02:33.8]} 13. b3 {[%clk 0:02:20.7]} 13... Ne4
{[%clk 0:02:33.3]} 14. Bb2 {[%clk 0:02:20.1]} 14... Bg4 {[%clk 0:02:31.8]} 15.
Nd4 {[%clk 0:02:15.3]} 15... Nc5 {[%clk 0:02:27.7]} 16. f3 {[%clk 0:02:08.3]}
16... Bd7 {[%clk 0:02:27.3]} 17. e4 {[%clk 0:02:07.7]} 17... Ne6 {[%clk
0:02:26.5]} 18. O-O-O {[%clk 0:02:04.5]} 18... O-O-O {[%clk 0:02:25.8]} 19. Nc2
{[%clk 0:01:58.2]} 19... f5 {[%clk 0:02:24.4]} 20. exf5 {[%clk 0:01:56.1]} 20...
Nxf5 {[%clk 0:02:25.3]} 21. Bd3 {[%clk 0:01:56.4]} 21... Nc5 {[%clk 0:02:22.9]}
22. Bf1 {[%clk 0:01:49.5]} 22... g6 {[%clk 0:02:19.5]} 23. b4 {[%clk 0:01:14.5]}
23... Na4 {[%clk 0:02:16.2]} 24. Bf6 {[%clk 0:01:09.5]} 24... Rde8 {[%clk
0:02:16.2]} 25. g4 {[%clk 0:01:02.6]} 25... Ne3 {[%clk 0:02:16.3]} 26. Rd2
{[%clk 0:00:45.2]} 26... Nxc2 {[%clk 0:02:15]} 27. Kxc2 {[%clk 0:00:46.1]} 27...
Re1 {[%clk 0:02:13.6]} 28. Bg2 {[%clk 0:00:40.8]} 28... Rxh1 {[%clk 0:02:13.4]}
29. Bxh1 {[%clk 0:00:41.7]} 29... Re8 {[%clk 0:02:13.4]} 30. Kd1 {[%clk
0:00:36.5]} 30... Nb6 {[%clk 0:02:12.9]} 31. Rc2 {[%clk 0:00:29.7]} 31... Ba4
{[%clk 0:02:11.9]} 32. Kd2 {[%clk 0:00:21.5]} 32... Bxc2 {[%clk 0:02:11.5]} 33.
Kxc2 {[%clk 0:00:22]} 33... Re1 {[%clk 0:02:11.5]} 34. c5 {[%clk 0:00:19.4]}
34... dxc5 {[%clk 0:02:10]} 35. bxc5 {[%clk 0:00:18.6]} 35... Nd7 {[%clk
0:02:10.5]} 36. g5 {[%clk 0:00:14.1]} 36... Rxh1 {[%clk 0:02:09]} 37. Kd2 {[%clk
0:00:13.9]} 37... Nxf6 {[%clk 0:02:08.6]} 38. gxf6 {[%clk 0:00:14.1]} 38... Kd7
{[%clk 0:02:09.5]} 39. c6+ {[%clk 0:00:14.2]} 39... bxc6 {[%clk 0:02:07.7]} 0-1

[Event "Late-Titled-Tuesday-Blitz-December-26-2023"]
[Site "Chess.com"]
[Date "2023.12.26"]
[Round "6"]
[White "lukazz029"]
[Black "YouShallNotPass001"]
[Result "1-0"]
[WhiteElo "2024"]
[BlackElo "2496"]
[TimeControl "180+1"]
[EndTime "15:04:59 PST"]
[Termination "lukazz029 won by checkmate"]

1. e4 {[%clk 0:03:00]} 1... e6 {[%clk 0:03:00.9]} 2. d4 {[%clk 0:02:58.9]} 2...
d5 {[%clk 0:03:01.8]} 3. Nc3 {[%clk 0:02:56]} 3... Bb4 {[%clk 0:03:00]} 4. e5
{[%clk 0:02:54.6]} 4... c5 {[%clk 0:02:58.6]} 5. a3 {[%clk 0:02:50.1]} 5...
Bxc3+ {[%clk 0:02:58.3]} 6. bxc3 {[%clk 0:02:51]} 6... Ne7 {[%clk 0:02:58.3]} 7.
Qg4 {[%clk 0:02:50.5]} 7... cxd4 {[%clk 0:02:57.6]} 8. Qxg7 {[%clk 0:02:47.6]}
8... Rg8 {[%clk 0:02:57.9]} 9. Qxh7 {[%clk 0:02:48]} 9... Qc7 {[%clk 0:02:58.4]}
10. Ne2 {[%clk 0:02:46.2]} 10... dxc3 {[%clk 0:02:51.4]} 11. f4 {[%clk
0:02:45.3]} 11... Nbc6 {[%clk 0:02:50.1]} 12. Qd3 {[%clk 0:02:44.3]} 12... d4
{[%clk 0:02:48.7]} 13. Ng3 {[%clk 0:02:23.2]} 13... Bd7 {[%clk 0:02:31.3]} 14.
Ne4 {[%clk 0:02:22.7]} 14... O-O-O {[%clk 0:02:31.6]} 15. Nd6+ {[%clk
0:02:22.5]} 15... Kb8 {[%clk 0:02:30.9]} 16. Nxf7 {[%clk 0:02:07.4]} 16... Rdf8
{[%clk 0:02:29.8]} 17. Nd6 {[%clk 0:02:07.2]} 17... Nd5 {[%clk 0:02:28.6]} 18.
Rb1 {[%clk 0:01:57.1]} 18... b6 {[%clk 0:02:25.6]} 19. g3 {[%clk 0:01:40.4]}
19... Ne3 {[%clk 0:02:03.4]} 20. Bxe3 {[%clk 0:01:37.8]} 20... dxe3 {[%clk
0:02:03.8]} 21. Bg2 {[%clk 0:01:33.6]} 21... Rxf4 {[%clk 0:01:50.7]} 22. Nb5
{[%clk 0:01:24.7]} 22... Nxe5 {[%clk 0:01:18.6]} 23. Qxe3 {[%clk 0:01:07.8]}
23... Bxb5 {[%clk 0:01:14.2]} 24. Rxb5 {[%clk 0:01:08.7]} 24... Rf5 {[%clk
0:01:09.9]} 25. Qe4 {[%clk 0:01:02.2]} 25... Qc4 {[%clk 0:00:44.9]} 26. Qb7#
{[%clk 0:01:00]} 1-0

[Event "Late-Titled-Tuesday-Blitz-December-26-2023"]
[Site "Chess.com"]
[Date "2023.12.26"]
[Round "6"]
[White "Inepton_Fermion"]
[Black "PawnEatingZombie"]
[Result "1-0"]
[WhiteElo "2422"]
[BlackElo "2093"]
[TimeControl "180+1"]
[EndTime "15:05:09 PST"]
[Termination "Inepton_Fermion won by resignation"]

1. e4 {[%clk 0:02:56.8]} 1... e6 {[%clk 0:02:59.4]} 2. Nf3 {[%clk 0:02:54.9]}
2... d5 {[%clk 0:02:59.4]} 3. d3 {[%clk 0:02:48.9]} 3... dxe4 {[%clk 0:02:54.4]}
4. dxe4 {[%clk 0:02:49.8]} 4... Qxd1+ {[%clk 0:02:54.2]} 5. Kxd1 {[%clk
0:02:50.7]} 5... c5 {[%clk 0:02:45.3]} 6. c3 {[%clk 0:02:50.3]} 6... Nd7 {[%clk
0:02:41.5]} 7. Be3 {[%clk 0:02:49.7]} 7... b6 {[%clk 0:02:41]} 8. a4 {[%clk
0:02:49.1]} 8... Bb7 {[%clk 0:02:41.1]} 9. Nfd2 {[%clk 0:02:40.9]} 9... Ngf6
{[%clk 0:02:35.4]} 10. f3 {[%clk 0:02:41.3]} 10... Be7 {[%clk 0:02:34.5]} 11.
Kc2 {[%clk 0:02:41.4]} 11... O-O {[%clk 0:02:34.1]} 12. Na3 {[%clk 0:02:41.8]}
12... Rfd8 {[%clk 0:02:24.8]} 13. h4 {[%clk 0:02:35.7]} 13... Ne8 {[%clk
0:02:24.7]} 14. h5 {[%clk 0:02:33.6]} 14... h6 {[%clk 0:02:24.8]} 15. g4 {[%clk
0:02:27.8]} 15... Nd6 {[%clk 0:02:22.6]} 16. Nb5 {[%clk 0:02:24.2]} 16... a6
{[%clk 0:02:17.7]} 17. Nxd6 {[%clk 0:02:22.9]} 17... Bxd6 {[%clk 0:02:17.4]} 18.
Nc4 {[%clk 0:02:20]} 18... Bc7 {[%clk 0:02:12.5]} 19. Be2 {[%clk 0:02:14.3]}
19... f5 {[%clk 0:02:09.6]} 20. gxf5 {[%clk 0:01:44.8]} 20... exf5 {[%clk
0:02:10.5]} 21. Rag1 {[%clk 0:01:42.1]} 21... fxe4 {[%clk 0:01:40.2]} 22. Bxh6
{[%clk 0:01:35.3]} 22... exf3 {[%clk 0:01:30.3]} 23. Rxg7+ {[%clk 0:01:35.1]}
23... Kh8 {[%clk 0:01:30.3]} 24. Bd3 {[%clk 0:01:33.6]} 24... f2 {[%clk
0:00:47.5]} 25. Rf1 {[%clk 0:01:13.5]} 25... Rf8 {[%clk 0:00:33.7]} 26. Rh7+
{[%clk 0:01:13.4]} 26... Kg8 {[%clk 0:00:33.5]} 27. Bxf8 {[%clk 0:01:12.4]}
27... Rxf8 {[%clk 0:00:30.4]} 28. Rxd7 {[%clk 0:01:12.4]} 28... Bg2 {[%clk
0:00:30]} 29. Rxc7 {[%clk 0:01:12.2]} 29... Bxf1 {[%clk 0:00:29.8]} 30. Bxf1
{[%clk 0:01:13.1]} 1-0

[Event "Late-Titled-Tuesday-Blitz-December-26-2023"]
[Site "Chess.com"]
[Date "2023.12.26"]
[Round "6"]
[White "Dr_crypt"]
[Black "Andrej2004"]
[Result "1-0"]
[WhiteElo "2385"]
[BlackElo "2551"]
[TimeControl "180+1"]
[EndTime "15:05:10 PST"]
[Termination "Dr_crypt won by resignation"]

1. Nf3 {[%clk 0:02:57.9]} 1... Nf6 {[%clk 0:02:50]} 2. b3 {[%clk 0:02:53.6]}
2... d6 {[%clk 0:02:48.9]} 3. d4 {[%clk 0:02:53.1]} 3... g6 {[%clk 0:02:48]} 4.
Bb2 {[%clk 0:02:53]} 4... Bg7 {[%clk 0:02:48]} 5. g3 {[%clk 0:02:53.1]} 5... O-O
{[%clk 0:02:48.3]} 6. Bg2 {[%clk 0:02:53.5]} 6... Nbd7 {[%clk 0:02:47.2]} 7. O-O
{[%clk 0:02:53.1]} 7... Re8 {[%clk 0:02:47.8]} 8. c4 {[%clk 0:02:46.4]} 8... c6
{[%clk 0:02:46.6]} 9. Re1 {[%clk 0:02:33.3]} 9... Qc7 {[%clk 0:02:46.4]} 10. e4
{[%clk 0:02:27.1]} 10... e5 {[%clk 0:02:46.6]} 11. Nbd2 {[%clk 0:02:22.5]} 11...
exd4 {[%clk 0:02:41.4]} 12. Nxd4 {[%clk 0:02:19.7]} 12... Nc5 {[%clk 0:02:41.7]}
13. Qc2 {[%clk 0:02:18.6]} 13... a5 {[%clk 0:02:38.8]} 14. h3 {[%clk 0:02:18.4]}
14... Bd7 {[%clk 0:02:37.8]} 15. Rad1 {[%clk 0:02:17.9]} 15... Rad8 {[%clk
0:02:37.1]} 16. a3 {[%clk 0:02:11.9]} 16... Qc8 {[%clk 0:02:35.7]} 17. Kh2
{[%clk 0:02:10.5]} 17... h5 {[%clk 0:02:35.3]} 18. b4 {[%clk 0:02:07.8]} 18...
axb4 {[%clk 0:02:35.5]} 19. axb4 {[%clk 0:02:07.4]} 19... Ne6 {[%clk 0:02:35.7]}
20. N4f3 {[%clk 0:01:59.4]} 20... Nh7 {[%clk 0:02:35.2]} 21. Bxg7 {[%clk
0:01:58.4]} 21... Kxg7 {[%clk 0:02:36.1]} 22. Nb3 {[%clk 0:01:56.7]} 22... Neg5
{[%clk 0:02:35.3]} 23. Ng1 {[%clk 0:01:29.6]} 23... Qc7 {[%clk 0:02:18.7]} 24.
c5 {[%clk 0:01:12.4]} 24... dxc5 {[%clk 0:02:15.5]} 25. Nxc5 {[%clk 0:01:11.9]}
25... Bc8 {[%clk 0:02:10.4]} 26. f4 {[%clk 0:01:08.9]} 26... Ne6 {[%clk
0:02:09.2]} 27. f5 {[%clk 0:01:01.4]} 27... Nxc5 {[%clk 0:02:04.4]} 28. bxc5
{[%clk 0:00:57.2]} 28... h4 {[%clk 0:02:04.8]} 29. Qc3+ {[%clk 0:00:50]} 29...
Kg8 {[%clk 0:01:30.3]} 30. fxg6 {[%clk 0:00:48.9]} 30... fxg6 {[%clk 0:01:30.7]}
31. Rxd8 {[%clk 0:00:46.8]} 31... Rxd8 {[%clk 0:01:30.7]} 32. e5 {[%clk
0:00:47]} 32... Ng5 {[%clk 0:01:25.9]} 33. Qc4+ {[%clk 0:00:46.2]} 33... Nf7
{[%clk 0:01:20.9]} 34. Qxh4 {[%clk 0:00:45.8]} 34... Nxe5 {[%clk 0:01:20.6]} 35.
Rxe5 {[%clk 0:00:45]} 1-0

[Event "Late-Titled-Tuesday-Blitz-December-26-2023"]
[Site "Chess.com"]
[Date "2023.12.26"]
[Round "6"]
[White "GMthekingindian"]
[Black "ShahMatKanal"]
[Result "1/2-1/2"]
[WhiteElo "2321"]
[BlackElo "2519"]
[TimeControl "180+1"]
[EndTime "15:05:18 PST"]
[Termination "Game drawn by repetition"]

1. e4 {[%clk 0:03:00.9]} 1... d5 {[%clk 0:02:56.9]} 2. exd5 {[%clk 0:03:00.3]}
2... Qxd5 {[%clk 0:02:46.5]} 3. Nc3 {[%clk 0:02:59.9]} 3... Qa5 {[%clk
0:02:44.3]} 4. Nf3 {[%clk 0:02:59]} 4... Nf6 {[%clk 0:02:35.7]} 5. d4 {[%clk
0:02:58.7]} 5... Bg4 {[%clk 0:02:28.9]} 6. h3 {[%clk 0:02:58.4]} 6... Bh5 {[%clk
0:02:17.2]} 7. Bd2 {[%clk 0:02:58.1]} 7... c6 {[%clk 0:02:13.3]} 8. g4 {[%clk
0:02:57.6]} 8... Bg6 {[%clk 0:02:12.9]} 9. Ne5 {[%clk 0:02:57.9]} 9... Nbd7
{[%clk 0:02:01.8]} 10. Nxg6 {[%clk 0:02:44.2]} 10... hxg6 {[%clk 0:01:56.6]} 11.
Qf3 {[%clk 0:02:44.8]} 11... e6 {[%clk 0:01:39.5]} 12. Bc4 {[%clk 0:02:36.6]}
12... Qc7 {[%clk 0:01:26.5]} 13. Bb3 {[%clk 0:02:33.2]} 13... Nb6 {[%clk
0:01:20.7]} 14. O-O-O {[%clk 0:02:26.8]} 14... O-O-O {[%clk 0:01:17.9]} 15. Bf4
{[%clk 0:02:24.8]} 15... Bd6 {[%clk 0:01:16.8]} 16. Bxd6 {[%clk 0:02:22.8]}
16... Rxd6 {[%clk 0:01:16.4]} 17. Ne4 {[%clk 0:02:20.1]} 17... Nxe4 {[%clk
0:01:15.8]} 18. Qxe4 {[%clk 0:02:21]} 18... a5 {[%clk 0:01:02.6]} 19. c3 {[%clk
0:02:20.6]} 19... a4 {[%clk 0:01:02.7]} 20. Bc2 {[%clk 0:02:20.6]} 20... a3
{[%clk 0:01:03.3]} 21. b3 {[%clk 0:02:20.9]} 21... Nd5 {[%clk 0:01:02.7]} 22.
Rd3 {[%clk 0:02:15.5]} 22... f5 {[%clk 0:00:54.8]} 23. Qf3 {[%clk 0:02:06.6]}
23... Nf6 {[%clk 0:00:45.4]} 24. gxf5 {[%clk 0:02:02.8]} 24... exf5 {[%clk
0:00:42.8]} 25. Rdd1 {[%clk 0:02:02.9]} 25... Rh6 {[%clk 0:00:39.8]} 26. c4
{[%clk 0:01:58.2]} 26... Kb8 {[%clk 0:00:39.7]} 27. Qe3 {[%clk 0:01:53]} 27...
Qd7 {[%clk 0:00:37]} 28. b4 {[%clk 0:01:39.8]} 28... Rh4 {[%clk 0:00:34.8]} 29.
Qxa3 {[%clk 0:01:38.7]} 29... Rhxd4 {[%clk 0:00:32]} 30. Qg3 {[%clk 0:01:23.8]}
30... Ka8 {[%clk 0:00:22.5]} 31. Qa3+ {[%clk 0:01:21.3]} 31... Kb8 {[%clk
0:00:21.4]} 32. Qg3 {[%clk 0:01:21.4]} 32... Ka8 {[%clk 0:00:21.6]} 33. Qa3+
{[%clk 0:01:21]} 33... Kb8 {[%clk 0:00:21.9]} 1/2-1/2